Cogmind - Beta 16 @@@ ROGUE MODE // 2025.12.29 @ 02:25:07 Player: tritri Result: Destroyed by CP-E1N(R) with Subdweller Beam Cannon Performance ------------- Evolutions (0) 0 Regions Visited (2) 400 Robots Destroyed (17) 85 Value Destroyed (439) 439 Prototype IDs (2) 40 Alien Tech Used (0) 0 Bonus (-106) -106 TOTAL SCORE: 858 Bonus ------- Friendly Fire -106 Cogmind --------- Core Integrity 0/250 Matter 300/300 Energy 124/125 System Corruption 0% Temperature Cool (11) Movement Flying (37) Location -10/Subcaves Parts ------- > --- POWER (1) -------- Light Ion Engine > --- PROPULSION (2) --- Flight Unit Flight Unit > --- UTILITY (2) ------ (None) > --- WEAPON (2) ------- Mining Claw > --- INVENTORY (5) ---- Aluminum Leg Aluminum Leg ECM Suite Datajack Peak State ------------ > --- POWER ------------ Light Ion Engine > --- PROPULSION ------- Flight Unit Flight Unit > --- UTILITY ---------- Scrap Shield > --- WEAPON ----------- Mining Claw > --- INVENTORY -------- Aluminum Leg Aluminum Leg ECM Suite Light Assault Rifle Datajack [Rating: 8] Favorites ----------- Power Light Ion Engine Engine Light Ion Engine Propulsion Aluminum Leg Leg Aluminum Leg Flight Unit Flight Unit Utility Heat Sink Device Heat Sink Storage Huge Storage Unit Protection Scrap Shield Weapon Light Assault Rifle Energy Gun Small Laser Ballistic Gun Light Assault Rifle Slashing Weapon Mining Claw Build | -11 -10 -10 ------- Run | Yrd Mat Sub Slots Evolved . | . . . Power . | . . . Propulsion . | . . . Utility . | . . . Weapon . | . . . Parts Attached 15 | 5 9 1 Power 2 | . 2 . Engine 2 | . 2 . Core . | . . . Reactor . | . . . Propulsion 5 | 2 3 . Treads . | . . . Leg 3 | 2 1 . Wheel . | . . . Hover . | . . . Flight 2 | . 2 . Utility 4 | 1 2 1 Device 2 | 1 1 . Storage 1 | . 1 . Processor . | . . . Hackware . | . . . Protection 1 | . . 1 Artifact . | . . . Weapon 4 | 2 2 . Energy Gun 1 | 1 . . Energy Cannon . | . . . Ballistic Gun 2 | 1 1 . Ballistic Cannon . | . . . Launcher . | . . . Special Weapon . | . . . Impact Weapon . | . . . Slashing Weapon 1 | . 1 . Piercing Weapon . | . . . Special Melee Weapon . | . . . Unidentified Prototypes . | . . . Parts Lost 8 | . 7 1 Power 1 | . 1 . Propulsion 2 | . 2 . Utility 2 | . 2 . Weapon 3 | . 2 1 Highest Loss Streak 5 | . 5 1 To Critical Strikes . | . . . Average Backups 3 | 1 3 4 Power . | . . . Propulsion 1 | . 2 2 Utility . | . . 1 Weapon . | . . . Tool/Special . | . . . Unused Backups 4 | . . 4 Power . | . . . Propulsion 2 | . . 2 Utility 1 | . . 1 Weapon . | . . . Tool/Special 1 | . . 1 Average Slot Usage (%) 82 | . 87 68 Engine 13 | . 13 14 Leg 17 | . 23 . Flight 9 | . 3 28 Device 13 | . 17 . Energy Gun 10 | . 13 . Ballistic Gun 12 | . 13 11 Slashing Weapon 4 | . . 14 Peak Build Rating 8 | 5 7 8 Average Rating 5 | 3 6 4 On Entrance 3 | . 5 4 Avg Prop Armor Cover (%) . | . . . Naked Turns . | . . . Heaviest Build 86 | 3 86 6 Greatest Support 20 | 20 20 8 Greatest Overweight (x) 4 | . 4 . Average Overweight (x) . | . . . Largest Inventory Capacity 25 | 5 25 5 Average Capacity 5 | 5 5 5 Most Carried 5 | 3 5 5 Average Carried 3 | 1 3 4 Final Capacity 5 | 5 5 5 Final Carried 5 | 3 5 4 Class Distribution -------------------- 74% | Mutant 25% | Scavenger-Mutant Dominant Class ---------------- Mutant | -10/Materials Scavenger-Mutant | -10/Subcaves Resources | -11 -10 -10 ----------- Run | Yrd Mat Sub Matter Collected 392 | 236 136 20 Remotely . | . . . Salvage Created 527 | 40 487 . Parts 46 | 4 42 . Haulers Intercepted . | . . . Recyclers Shooed . | . . . Parts Field Recycled . | . . . Retrieved Matter . | . . . Parts Self-Destructed 4 | . . 4 Prevented . | . . . Parts Restored . | . . . Kills | -11 -10 -10 ------- Run | Yrd Mat Sub Combat Hostiles Destroyed 15 | 1 14 . Guns 15 | 1 14 . Classes Destroyed 4 | 1 3 . Tunneler 1 | . 1 . Watcher 1 | . 1 . Swarmer 5 | . 5 . Grunt 10 | 1 9 . Best Kill Streak 5 | 1 5 . Combat Bots Only 5 | 1 5 . Max Kills in Single Turn 1 | 1 1 . Gunslinging . | . . . Exploded . | . . . Melee . | . . . Uniques/NPCs Destroyed . | . . . Combat | -11 -10 -10 -------- Run | Yrd Mat Sub Hostile Shots Fired 118 | 7 93 18 Missed 46 | 2 33 11 Hits 72 | 5 60 7 Projectile 72 | 5 60 7 Damage Taken 860 | 57 675 128 Core 251 | 23 187 41 Absorbed by Shields . | . . . Core Remaining (%) 90 | 90 . . Volleys Fired 57 | 5 52 . Largest 2 | 2 2 . Hottest 60 | 60 60 . Shots Fired 113 | 10 103 . Gun 113 | 10 103 . Cannon . | . . . Launcher . | . . . Special . | . . . Kinetic 56 | 5 51 . Thermal 57 | 5 52 . Explosive . | . . . Electromagnetic . | . . . Robot Hit Streak 10 | 5 10 . Robot Miss Streak 5 | 2 5 . Penetration Max . | . . . Secondary Targets 5 | . 5 . Max Gunslinging Chain 1 | . 1 . Shots Hit Robots 75 | 7 66 2 Core Hits 35 | 2 33 . Critical Kills . | . . . Critical Parts Destroyed . | . . . Critical Strikes . | . . . Melee Attacks 28 | . 5 23 Impact . | . . . Slashing 28 | . 5 23 Piercing . | . . . Sneak Attacks 2 | . . 2 Combat Hostiles . | . . . Follow-up Attacks . | . . . Damage Inflicted 808 | 70 632 106 Guns 697 | 70 627 . Cannons . | . . . Explosions . | . . . Melee 106 | . . 106 Ramming 5 | . 5 . Kinetic 275 | 25 250 . Thermal 422 | 45 377 . Explosive . | . . . Electromagnetic . | . . . Impact . | . . . Slashing 106 | . . 106 Piercing . | . . . Highest Corruption . | . . . Average Corruption . | . . . Corruption Purged . | . . . Corruption Blocked . | . . . Overload Shots . | . . . Overflow Damage . | . . . Projectiles . | . . . Explosions . | . . . Melee . | . . . Knockbacks . | . . . Impact . | . . . Kinetic . | . . . Secondary . | . . . Self-Inflicted Damage . | . . . Shots . | . . . Rammed . | . . . Targets Rammed 2 | . 2 . Kicked 2 | . 2 . Crushed . | . . . Highest Temperature 76 | 16 76 . Average Temperature 22 | 9 23 . Received Heat Transfer 336 | 30 285 21 Siege Activations . | . . . Martial Activations . | . . . Shielding Activations . | . . . Robots Disrupted . | . . . Combat Hostiles . | . . . Robots Corrupted . | . . . Combat Hostiles . | . . . Parts Fried . | . . . Impact Corruptions . | . . . Robots Melted . | . . . Combat Hostiles . | . . . Parts Melted . | . . . Heat Transferred 975 | 100 875 . Parts Sabotaged . | . . . Parts Stolen . | . . . Parts Stripped . | . . . Power Chain Reactions . | . . . Alert | -11 -10 -10 ------- Run | Yrd Mat Sub Maximum Alert Level . | . . . Low Security (%) 100 | 100 100 . Level 1 . | . . . Level 2 . | . . . Level 3 . | . . . Level 4 . | . . . Level 5 . | . . . High Security . | . . . Max Security . | . . . Peak Influence 130 | 20 130 . Initial 6 | . 6 . Average 39 | 1 42 . Influence Increases 500 | 20 390 90 Destroy 0b10 Robot/C 300 | 20 280 . Destroy 0b10 Robot/NC 10 | . 10 . Destroy Leader 52 | . 52 . Successful Hack 14 | . 14 . Destroy Structure 4 | . 4 . Lose Combat Pursuer 120 | . 30 90 Influence Decreases 500 | 10 304 186 Entered New Map 51 | . 4 47 Time Decay 379 | 10 230 139 Lost Part 70 | . 70 . Squads Dispatched 2 | . 2 . Investigation 1 | . 1 . Extermination . | . . . Reinforcement 1 | . 1 . Assault . | . . . Garrison . | . . . Intercept . | . . . Searches Triggered . | . . . Construction Impeded . | . . . Haulers Reinforced . | . . . Active Scanning Responses . | . . . Cargo Convoy Interrupts . | . . . Stealth | -11 -10 -10 --------- Run | Yrd Mat Sub Distress Signals 1 | . 1 . Communications Jammed . | . . . Distress Signals . | . . . Times Spotted 40 | 1 25 14 Peak Tracking Total 9 | 1 6 9 Tactical Retreats 4 | . 2 2 Traps | -11 -10 -10 ------- Run | Yrd Mat Sub Traps Triggered . | . . . Indirectly . | . . . Trap Hack Attempts . | . . . Triggered . | . . . Disarmed . | . . . Reprogrammed . | . . . Reused . | . . . Traps Extracted . | . . . Installed . | . . . Triggered . | . . . Machines | -11 -10 -10 ---------- Run | Yrd Mat Sub Machines Disabled . | . . . Max in Single Turn . | . . . Machines Repaired . | . . . Machines Dismantled . | . . . Machines Sabotaged . | . . . Overloaded Fab Kills . | . . . Hacking | -11 -10 -10 --------- Run | Yrd Mat Sub Machines Accessed 4 | . 4 . Terminals 4 | . 4 . Fabricators . | . . . Repair Stations . | . . . Recycling Units . | . . . Scanalyzers . | . . . Garrison Access . | . . . Total Hacks 8 | . 8 . Successful 3 | . 3 . Failed 5 | . 5 . Catastrophic 2 | . 2 . Database Lockouts . | . . . Manual 2 | . 2 . Terminals 8 | . 8 . Fabricators . | . . . Repair Stations . | . . . Recycling Units . | . . . Scanalyzers . | . . . Garrison Access . | . . . Terminal Hacks 3 | . 3 . Robot Analysis 1 | . 1 . Prototype ID Bank 1 | . 1 . Locate Traps 1 | . 1 . Fabricator Hacks . | . . . Repair Station Hacks . | . . . Recycling Unit Hacks . | . . . Scanalyzer . | . . . Garrison Access Hacks . | . . . Unauthorized Hacks . | . . . Terminals . | . . . Fabricators . | . . . Repair Stations . | . . . Recycling Units . | . . . Scanalyzers . | . . . Garrison Access . | . . . Data Cores Recovered . | . . . Used . | . . . Hacking Detections 4 | . 4 . Full Trace Events 2 | . 2 . Feedback Events . | . . . Feedback Blocked . | . . . Robot Schematics Acquired . | . . . Robots Built . | . . . Authchips . | . . . Time . | . . . Total Robot Build Rating . | . . . Part Schematics Acquired . | . . . Parts Built . | . . . Authchips . | . . . Time . | . . . Total Part Build Rating . | . . . Part Studies Acquired . | . . . Parts Repaired . | . . . Time . | . . . Parts Recycled . | . . . Recycled Matter . | . . . Retrieved Matter . | . . . Retrieved Components . | . . . Parts Scanalyzed . | . . . Part Schematics Acquired . | . . . Parts Damaged . | . . . Bothacking | -11 -10 -10 ------------ Run | Yrd Mat Sub Used RIF Installer . | . . . Robots Hacked . | . . . Non-combat . | . . . Combat . | . . . Robot Hacks Applied . | . . . Relay Couplers Released . | . . . Fabnet Peak Effective % . | . . . Robots Rewired . | . . . Allies Hacked . | . . . Hacks Repelled . | . . . Allies | -11 -10 -10 -------- Run | Yrd Mat Sub Total Allies . | . . . Largest Group . | . . . Highest-Rated Group . | . . . Highest-Rated Ally . | . . . Total Orders . | . . . Ally Attacks . | . . . Total Damage . | . . . Kills . | . . . Allies Corrupted . | . . . Allies Melted . | . . . Intel | -11 -10 -10 ------- Run | Yrd Mat Sub Active Infowar (turns) 441 | . 441 . Terrain 441 | . 441 . Robot Analysis Total 1 | . 1 . Derelict Logs Recovered 2 | . . 2 Drone Launches . | . . . Drone Recoveries . | . . . Exploration | -11 -10 -10 ------------- Run | Yrd Mat Sub Turns Passed 1244 | 90 863 291 Spaces Moved 1270 | 66 613 591 Core 22 | 18 4 . Treads . | . . . Legs 461 | 48 413 . Wheels . | . . . Hover . | . . . Flight 787 | . 196 591 Fastest Speed 37 | 50 37 37 Average Speed 67 | 100 93 37 Slowest Speed 400 | 120 400 37 Overloaded Moves . | . . . Propulsion Burnouts . | . . . Robots Hopped 1 | . 1 . Potential Cave-ins . | . . . Cave-ins Triggered . | . . . Exploration Rate (%) 44 | 7 73 52 Regions Visited 2 Branch Regions 1 Pre-discovered Areas 2 | . . 2 Known Exits Taken . | . . . Unknown Exits Taken 2 | 1 1 . Scrap Searched . | . . . Spaces Dug 12 | . 5 7 Terrain Destroyed 12 | . 5 7 Melee 12 | . 5 7 Projectile . | . . . AOE . | . . . Terrain Rammed . | . . . Walls Destroyed . | . . . Machines Disabled . | . . . Actions | -11 -10 -10 --------- Run | Yrd Mat Sub Total 1491 | 78 796 617 Wait 109 | . 109 . Move 1266 | 65 610 591 Hop 1 | . 1 . Pick Up 5 | 3 2 . Fast Attach 13 | 5 7 1 Attach 3 | . 2 1 Detach 3 | . 3 . Swap 1 | . 1 . Drop 3 | . 2 1 Fire 57 | 5 52 . Melee 28 | . 5 23 Ram . | . . . Kick 2 | . 2 . Crush . | . . . Escape Stasis . | . . . Rewire . | . . . Trap . | . . . Miscellaneous . | . . . Route ------- -11/Scrapyard -10/Materials (discovered 4 exits: [*Mat x2] / [*Min] / [*Sub]) -10/Subcaves History --------- Turn | Location | Event 2 | -11/Scrapyard | Met Revision 17 58 | -11/Scrapyard | Discovered new exit (range 8) 91 | -11/Scrapyard | Entered Materials 313 | -10/Materials | Build established: Mutant 367 | -10/Materials | Discovered new exit (range 8) 609 | -10/Materials | Discovered new exit (range 12) 666 | -10/Materials | Discovered new exit (range 10) 724 | -10/Materials | Core integrity fell below 50% 850 | -10/Materials | Discovered new exit (range 7) 865 | -10/Materials | Lost 5 parts (1p2n1u1w) 931 | -10/Materials | Core integrity fell below 20% 954 | -10/Materials | Entered Subcaves 973 | -10/Subcaves | Learned location of Storage (-8) 981 | -10/Subcaves | Ambushed by swarm of Subdwellers 1022 | -10/Subcaves | Shifting Twisted Machinery released Riot Gun 1101 | -10/Subcaves | Learned location of Recycling (-8) 1145 | -10/Subcaves | Ambushed by Subdwellers from Twisted Machinery 1245 | -10/Subcaves | Destroyed by CP-E1N(R) with Subdweller Beam Cannon Last Messages --------------- 00984_ ZF-4EI(g): "Sorry we're late! Had another grouchy Sub to deal with. Who's the new fellow?" 00989_ 2I-9DZ(h) drops a Scrap Shield: "Protect yourself with this!" 00989_ Sneak attack on UB-BNU(g). 00992_ Sneak attack on 2I-9DZ(h). 00997_ Acquired Scrap Shield. 00998_ Dropped Scrap Shield. Riot Gun falls loose from the Twisted Machinery. 01086_ V9-ZD1(O) collects matter. 01101_ Acquired derelict log, extracted data. World map updated: -8/Recycling. 01111_ CP-E1N(R): "SUB#$%&!" 01113_ Acquired 6 matter. 01114_ Acquired 14 matter. 01145_ KH-JOZ(R) emerges from the Twisted Machinery. [Achievement: Part-time Excavator] 01245_ Lgt. Assault Rifle destroyed. Map ----- +----------------------------------------------------+ | ?????#### ### #???????????????? | | ????????## ####? #???????????????? | | ?????????## ##???? #???????????????? | | ??????????### ######### #???????????????? | | ????????????# # #??## %#???????????????? | | ????????????## % | #???? #???????????????? | | ?????????????## ## #????# #???????????????? | | ??????????????## ## ## ##????##???????????????? | | # ???#####?## #?????????????????????? | | ???# ## #?????????????????????? | | ???# ## ##????????????????????? | | ???????## ##### #????????????????????? | | ??????????# ##??# ##????????????????????? | | ??????????# ##?# ##????????????????????? | | ??????????# ## #?## #????????????????????? | | ??????????###?# #?# ##????????????????????? | | #?????????????### ### ##????????????????????? | | #???????????????# # # #????????????????????? | | ????????????????# & #????????????????????? | | ????????????????## ## ###???##??????????????? | | ?????????????????######O #### ##?????????????? | | #?????????????????????# #?????????????? | | #?????????????????????# #?????????????? | | ??????????????????????# ##?????????????? | | ??????????????????????## ###??????????????? | | ???????????????????????#;@ ##????????????????? | | ???????????????????????## ###?????????????????? | | ???????????????????????# #???????????????????? | | ??????????????????????## ##???????????????????? | | ??????????????????????# #???????????????????? | | ??????????????????????## #???????????????????? | | ?????????????????????## ###??????????????????? | | ????????????????????## #??????????????????? | | ????????????????????# #??????????????????? | | ????????????????????# #??????????????????? | | ????????????????????# ## R #??????????????????? | | ????????????????????##?# #??????????????????? | | ??????????????????????## ##??????????????????? | | ??????????????????????# ##??????????????????? | | ??????????????????????# #??????????????????? | | ??????????????????????## #??????????????????? | | ?????????????#######???## #??????????????????? | | ???????????###% ###??# ##??????????????????? | | ????????#% #$#"% % ##?# ##?##???????????????? | | ?????????# & ### ## ##??????????????? | | ????????# "##" % ## #??????????????? | | ????????????# % #??????????????? | | ????########### % #??????????????? | | ##### # ### ## #?????????????? | | "# #?????????????? | +----------------------------------------------------+ Best States ------------- Heat Dissipation 35 Energy Generation 10 Energy Capacity 125 Matter Stores 300 Matter Capacity 300 Sight Range 16 Terrain Scan Range 14 Terrain Scan Density 10 Evasion (%) 62 Item Schematics ----------------- None Robot Schematics ------------------ None Fabricated ------------ Nothing Repaired ---------- Nothing Studied --------- None Alien Tech Used ----------------- None Achievements -------------- Part-time Excavator Challenges ------------ None Game ------ Seed SpacefoldPotentialJets Manual? 0 Play Time 00:20:16 Cumulative 1.3 hours Start 2025.12.29 @ 02:07:43 End 2025.12.29 @ 02:25:07 Sessions 1 Manual Loads 0 Difficulty Rogue Special Mode None Game No. 3 Rogue 3 Adventurer 0 Explorer 0 Win Type - Total 0 Types 0/0/0/0/0/0/0/0/0/0 Lore% 5 Gallery% 1 Achievement% 4 Wizard Run 0 Options --------- Layout 1 ASCII 0 Keyboard 1 Movement Vi Keybinds 0 Fullscreen 1 Font 24/Smallcaps Map View 50x35 Zoom Use 0% Tactical HUD 1 Map Filters NONE Filters NONE Steam 1 RUN: 83fe6fdd-ae09-4525-b0a5-526f8516e21a